fUST/lending_fUST_20250602
["ID","MTS","AMOUNT","RATE_DAILY","PERIOD"]
[363690226,1748815845029,-800.0,0.00022243,2]
[363690227,1748815845038,-300.0,0.00022243,2]
[363690228,1748815845048,-800.0,0.00022243,2]
[363690229,1748815845058,-300.0,0.00022243,2]
[363690230,1748815845068,-800.0,0.00022243,2]
[363690231,1748815845078,-300.0,0.00022243,2]
[363690232,1748815845087,-207.4,0.00022243,2]
[363690233,1748815845097,-800.0,0.00022243,2]
[363690234,1748815845106,-300.0,0.00022243,2]
[363690235,1748815845116,-800.0,0.00022243,2]
[363690236,1748815845126,-300.0,0.00022243,2]
[363690237,1748815845135,-800.0,0.00022243,2]
[363690238,1748815845145,-300.0,0.00022243,2]
[363690239,1748815845155,-800.0,0.00022243,2]
[363690240,1748815845164,-300.0,0.00022243,2]
[363690241,1748815845174,-800.0,0.00022243,2]
[363690242,1748815845184,-300.0,0.00022243,2]
[363690243,1748815845194,-800.0,0.00022243,2]
[363690244,1748815845203,-300.0,0.00022243,2]
[363690245,1748815845213,-300.0,0.00022243,2]
[363690246,1748815845223,-800.0,0.00022243,2]
[363690247,1748815845233,-300.0,0.00022243,2]
[363690248,1748815845243,-800.0,0.00022243,2]
[363690249,1748815845252,-300.0,0.00022243,2]
[363690250,1748815845262,-800.0,0.00022243,2]
[363690251,1748815845272,-300.0,0.00022243,2]
[363690252,1748815845282,-800.0,0.00022243,2]
[363690254,1748815845291,-300.0,0.00022243,2]
[363690255,1748815845301,-800.0,0.00022243,2]
[363690256,1748815845311,-5000.0,0.00022243,2]
[363690258,1748815845320,-800.0,0.00022243,2]
[363690261,1748815845331,-500.0,0.00022259,2]
[363690262,1748815845340,-151.0,0.000224,5]
[363690264,1748815845350,-1302.75717069,0.00022452,7]
[363690265,1748815845360,-570.6,0.00022465,2]
[363690266,1748815845370,-614.93,0.00022465,2]
[363690267,1748815845380,-511.5,0.00022465,2]
[363690268,1748815845390,-698.7,0.00022465,2]
[363690269,1748815845400,-430.0,0.00022465,2]
[363690270,1748815845410,-633.25,0.00022465,2]
[363690271,1748815845419,-356.52,0.000225,7]
[363690272,1748815845429,-2879.98861395,0.00022517,2]
[363690273,1748815845439,-1302.75717069,0.00022693,7]
[363690274,1748815845449,-151.0,0.000227,10]
[363690275,1748815845459,-151.0,0.000227,6]
[363690276,1748815845468,-191.47486968,0.00022712,2]
[363690277,1748815845478,-191.47486968,0.00022712,2]
[363690278,1748815845489,-570.77978705,0.00022739,2]
[363690279,1748815845500,-615.08908283,0.00022739,2]
[363690280,1748815845510,-511.70550594,0.00022739,2]
[363690281,1748815845520,-698.93725814,0.00022739,2]
[363690282,1748815845530,-400.07,0.00022739,2]
[363690283,1748815845540,-633.28748848,0.00022739,2]
[363690284,1748815845550,-5000.0,0.00022791,2]
[363690285,1748815845561,-2352.86,0.000228,2]
[363690286,1748815845571,-751.56940287,0.00022905,2]
[363690287,1748815845580,-962.0,0.00022914,2]
[363690288,1748815845590,-708.0,0.00022914,2]
[363690289,1748815845600,-2229.0,0.00022914,2]
[363690290,1748815845610,-1302.75717069,0.00022934,8]
[363690291,1748815845620,-1655.97,0.00022989,2]
[363690292,1748815845630,-500.0,0.00023,8]
[363690293,1748815845639,-500.0,0.00023,8]
[363690294,1748815845649,-500.87972083,0.00023,8]
[363690295,1748815845658,-191.47486968,0.00023014,2]
[363690296,1748815845669,-191.47486968,0.00023014,2]
[363690297,1748815845680,-155.3651621,0.00023014,2]
[363690298,1748815845690,-170.0,0.00023014,7]
[363690299,1748815845699,-2020.859206,0.00023029,3]
[363690300,1748815845708,-257.49,0.000231,7]
[363690301,1748815845718,-151.0,0.000231,8]
[363690302,1748815845728,-681.959034,0.00023154,2]
[363690303,1748815845738,-1302.75717069,0.00023176,8]
[363690304,1748815845748,-800.0,0.00023197,2]
[363690305,1748815845757,-151.0,0.000232,10]
[363690306,1748815845767,-1655.97,0.00023217,2]
[363690307,1748815845777,-15000.0,0.00023226,3]
[363690308,1748815845787,-5202.63,0.00023242,3]
[363690309,1748815845797,-649.86293143,0.00023288,2]
[363690310,1748815845807,-800.0,0.00023295,2]
[363690311,1748815845817,-151.0,0.000233,5]
[363690312,1748815845827,-160.0,0.000233,3]
[363690313,1748815845836,-423.51412927,0.000233,3]
[363690314,1748815845847,-229.3709046,0.000233,3]
[363690315,1748815845857,-160.0,0.000233,3]
[363690316,1748815845867,-459.94199928,0.000233,20]
[363690317,1748815845876,-191.47486968,0.00023315,2]
[363690318,1748815845886,-151.0,0.00023339,7]
[363690319,1748815845896,-151.0,0.00023339,7]
[363690320,1748815845906,-5000.0,0.00023339,2]
[363690321,1748815845915,-500.0,0.00023355,2]
[363690322,1748815845925,-8836.68,0.00023393,7]
[363690323,1748815845934,-151.0,0.000234,5]
[363690324,1748815845944,-638.0,0.000234,2]
[363690325,1748815845954,-800.0,0.00023401,2]
[363690326,1748815845964,-1302.75717069,0.00023417,9]
[363690327,1748815845974,-1152.0,0.00023442,2]
[363690328,1748815845983,-1655.97,0.00023477,2]
[363690329,1748815845993,-151.0,0.00023478,7]
[363690330,1748815846003,-151.0,0.00023478,7]
[363690331,1748815846012,-2000.0,0.00023479,2]
[363690332,1748815846021,-2000.0,0.00023479,2]
[363690333,1748815846031,-2000.0,0.00023479,2]
[363690334,1748815846040,-2000.0,0.00023479,2]
[363690335,1748815846049,-2000.0,0.00023479,2]
[363690336,1748815846059,-2000.0,0.00023479,2]
[363690337,1748815846068,-659.52,0.00023479,2]
[363690338,1748815846077,-151.0,0.00023479,7]
[363690339,1748815846087,-151.0,0.00023479,7]
[363690340,1748815846097,-151.0,0.00023479,7]
[363690341,1748815846107,-1655.97,0.00023499,2]
[363690342,1748815846117,-1655.97,0.00023499,2]
[363690344,1748815846127,-2403.27004786,0.000235,2]
[363690346,1748815846136,-274.408038,0.000235,7]
[363690348,1748815846146,-274.408038,0.000235,7]
[363690350,1748815846155,-274.408038,0.000235,7]
[363690351,1748815846164,-274.408038,0.000235,7]
[363690352,1748815846174,-274.408038,0.000235,7]
[363690353,1748815846185,-274.408038,0.000235,7]
[363690354,1748815846194,-212.80060342,0.000235,7]
[363690355,1748815846204,-11344.92382377,0.000235,2]
[363690356,1748815846213,-151.0,0.000235,7]
[363690357,1748815846223,-151.0,0.000235,7]
[363690358,1748815846232,-151.0,0.000235,7]
[363690359,1748815846241,-151.0,0.000235,7]
[363690360,1748815846251,-151.0,0.000235,7]
[363690361,1748815846260,-151.0,0.000235,7]
[363690362,1748815846270,-151.0,0.000235,7]
[363690363,1748815846279,-151.0,0.000235,7]
[363690364,1748815846289,-151.0,0.000235,7]
[363690365,1748815846298,-151.0,0.000235,7]
[363690366,1748815846308,-151.0,0.000235,7]
[363690367,1748815846317,-151.0,0.000235,7]
[363690368,1748815846327,-151.0,0.000235,7]
[363690369,1748815846336,-151.0,0.000235,7]
[363690370,1748815846346,-151.0,0.000235,7]
[363690371,1748815846356,-151.0,0.000235,7]
[363690372,1748815846366,-151.0,0.000235,7]
[363690373,1748815846375,-151.0,0.000235,7]
[363690374,1748815846385,-201.230902,0.000235,7]
[363690375,1748815846395,-201.230902,0.000235,7]
[363690376,1748815846404,-151.0,0.000235,7]
[363690377,1748815846414,-151.0,0.000235,7]
[363690378,1748815846424,-151.0,0.000235,7]
[363690380,1748815846434,-151.0,0.000235,7]
[363690381,1748815846443,-151.0,0.000235,7]
[363690382,1748815846453,-151.0,0.000235,7]
[363690383,1748815846462,-151.0,0.000235,7]
[363690384,1748815846471,-151.0,0.000235,7]
[363690385,1748815846481,-151.0,0.000235,7]
[363690386,1748815846490,-151.0,0.000235,7]
[363690387,1748815846499,-151.0,0.000235,7]
[363690388,1748815846509,-151.0,0.000235,7]
[363690389,1748815846518,-174.947184,0.000235,7]
[363690390,1748815846527,-151.0,0.000235,2]
[363690391,1748815846536,-151.0,0.000235,2]
[363690392,1748815846545,-723.979862,0.000235,7]
[363690393,1748815846555,-723.979862,0.000235,7]
[363690394,1748815846564,-723.979862,0.000235,7]
[363690395,1748815846573,-723.979862,0.000235,7]
[363690396,1748815846582,-151.0,0.000235,7]
[363690397,1748815846591,-151.0,0.000235,7]
[363690398,1748815846600,-151.0,0.000235,7]
[363690399,1748815846610,-733.41055328,0.000235,3]
[363690400,1748815846619,-155.07848048,0.000235,3]
[363690401,1748815846629,-316.0,0.000235,3]
[363690402,1748815846638,-316.0,0.000235,3]
[363690403,1748815846648,-316.0,0.000235,3]
[363690404,1748815846657,-316.0,0.000235,3]
[363690405,1748815846667,-316.0,0.000235,3]
[363690406,1748815846680,-316.0,0.000235,3]
[363690407,1748815846693,-316.0,0.000235,3]
[363690408,1748815846703,-316.0,0.000235,3]
[363690409,1748815846712,-316.0,0.000235,3]
[363690410,1748815846721,-316.0,0.000235,3]
[363690411,1748815846731,-316.0,0.000235,3]
[363690412,1748815846741,-390.9480695,0.000235,3]
[363690413,1748815846750,-151.0,0.000235,7]
[363690414,1748815846759,-151.0,0.000235,7]
[363690415,1748815846769,-151.0,0.000235,7]
[363690416,1748815846778,-12666.87825251,0.000235,30]
[363690417,1748815846788,-219.14648206,0.000235,2]
[363690418,1748815846797,-151.0,0.00023546,7]
[363690419,1748815846807,-151.0,0.00023546,7]
[363690420,1748815846816,-333.494331,0.00023546,7]
[363690421,1748815846826,-333.494331,0.00023546,7]
[363690422,1748815846836,-151.0,0.00023546,7]
[363690423,1748815846846,-151.0,0.00023546,7]
[363690424,1748815846856,-5000.0,0.00023546,30]
[363690425,1748815846866,-5000.0,0.00023546,30]
[363690426,1748815846877,-5000.0,0.00023546,30]
[363690427,1748815846887,-5000.0,0.00023546,30]
[363690428,1748815846984,-5000.0,0.00023546,30]
[363690429,1748815847007,-5000.0,0.00023546,30]
[363690430,1748815847016,-5000.0,0.00023546,30]
[363690431,1748815847026,-2128.23,0.00023546,30]
[363690432,1748815847036,-292.87985933,0.00023559,2]
[363690433,1748815847046,-1655.97,0.0002356,2]
[363690434,1748815847056,-1655.97,0.0002356,2]
[363690435,1748815847066,-1655.97,0.0002356,2]
[363690436,1748815847076,-1655.97,0.0002356,2]
[363690437,1748815847085,-1656.00484619,0.0002356,2]
[363690438,1748815847095,-26433.10673348,0.00023561,2]
[363690439,1748815847104,-60688.90112919,0.00023561,2]
[363690440,1748815847113,-151.0,0.00023561,7]
[363690441,1748815847123,-196.20059,0.00023561,7]
[363690442,1748815847132,-196.20059,0.00023561,7]
[363690443,1748815847142,-151.0,0.00023561,7]
[363690444,1748815847152,-151.0,0.00023561,7]
[363690445,1748815847162,-294.16279304,0.00023561,2]
[363690446,1748815847171,-151.0,0.00023561,7]
[363690447,1748815847184,-156.634593,0.00023561,7]
[363690448,1748815847194,-151.0,0.00023561,7]
[363690449,1748815847204,-2452.87849431,0.00023562,2]
[363690450,1748815847214,-3088.65435801,0.000236,5]
[363690451,1748815847224,-151.0,0.000236,7]
[363690452,1748815847233,-151.0,0.000236,7]
[363690453,1748815847243,-333.494331,0.000236,7]
[363690454,1748815847252,-333.494331,0.000236,7]
[363690455,1748815847262,-151.0,0.000236,7]
[363690456,1748815847272,-151.0,0.000236,7]
[363690457,1748815847282,-215.0738,0.00023612,2]
[363690458,1748815847292,-4274.99186501,0.00023613,2]
[363690459,1748815847302,-500.0,0.00023623,7]
[363690460,1748815847312,-469.81,0.00023655,10]
[363690461,1748815847323,-1302.75717069,0.00023659,9]
[363690462,1748815847332,-151.0,0.00023665,7]
[363690463,1748815847342,-151.0,0.00023665,7]
[363690464,1748815847352,-151.0,0.00023665,7]
[363690465,1748815847362,-2879.98861395,0.00023699,2]
[363690466,1748815847372,-3379.72110468,0.000237,15]
[363690467,1748815847382,-273.0,0.000237,2]
[363690468,1748815847392,-151.0,0.000237,7]
[363690469,1748815847402,-151.0,0.000237,7]
[363690470,1748815847412,-151.0,0.000237,7]
[363690471,1748815847422,-151.0,0.000237,7]
[363690472,1748815847433,-201.230902,0.000237,7]
[363690473,1748815847442,-201.230902,0.000237,7]
[363690474,1748815847451,-151.0,0.000237,2]
[363690475,1748815847460,-723.979862,0.000237,7]
[363690476,1748815847470,-723.979862,0.000237,7]
[363690477,1748815847479,-356.52,0.000237,7]
[363690478,1748815847489,-153.0,0.000237,31]
[363690479,1748815847498,-153.0,0.000237,31]
[363690480,1748815847508,-153.0,0.000237,31]
[363690481,1748815847517,-153.0,0.000237,31]
[363690482,1748815847527,-153.0,0.000237,31]
[363690483,1748815847536,-153.0,0.000237,31]
[363690484,1748815847546,-153.0,0.000237,31]
[363690485,1748815847555,-153.0,0.000237,31]
[363690486,1748815847564,-153.0,0.000237,31]
[363690487,1748815847574,-153.0,0.000237,31]
[363690488,1748815847584,-153.0,0.000237,31]
[363690489,1748815847594,-153.0,0.000237,31]
[363690490,1748815847605,-153.0,0.000237,31]
[363690491,1748815847614,-153.0,0.000237,31]
[363690492,1748815847624,-153.0,0.000237,31]
[363690493,1748815847633,-1740.08153917,0.000237,2]
[363690494,1748815847643,-1740.08153913,0.00023711,2]
[363690495,1748815847653,-1740.08153913,0.00023722,2]
[363690496,1748815847662,-1740.08153913,0.00023732,2]
[363690497,1748815847671,-1740.08153913,0.00023743,2]
[363690498,1748815847683,-984.6132222,0.00023753,3]
[363690499,1748815847693,-1740.08153913,0.00023754,2]
[363690500,1748815847703,-1740.08153913,0.00023765,2]
[363690501,1748815847713,-500.0,0.00023773,2]
[363690502,1748815847723,-500.0,0.00023773,2]
[363690503,1748815847733,-525.58676027,0.00023773,2]
[363690504,1748815847743,-500.0,0.00023773,2]
[363690505,1748815847754,-500.0,0.00023773,2]
[363690506,1748815847764,-320.1009062,0.00023773,2]
[363690507,1748815847872,-181.4340373,0.00023773,2]
[363690508,1748815847881,-500.92705895,0.00023773,2]
[363690509,1748815847892,-501.59296241,0.00023773,2]
[363690510,1748815847902,-500.0,0.00023773,2]
[363690511,1748815847912,-500.0,0.00023773,2]
[363690512,1748815847922,-248.43004391,0.00023773,2]
[363690513,1748815847957,-834.40444356,0.00020673,2]
[363690514,1748815847969,-472.91562683,0.00020673,2]
[363690515,1748815847981,-490.75843,0.00020673,2]
[363690516,1748815848011,-4526.99149961,0.00020673,2]
[363690517,1748815848022,-397.80849431,0.00021534,2]
[363690518,1748815848035,-7508.53150569,0.00021534,2]
[363690519,1748815848046,-9487.61,0.00022395,2]
[363690520,1748815848056,-11068.88,0.00023257,2]
[363690521,1748815848066,-1297.779594,0.000235,2]
[363690522,1748815848076,-251.56995609,0.00023773,2]
[363690523,1748815848086,-500.48097815,0.00023773,2]
[363690524,1748815848096,-1740.08153913,0.00023775,2]
[363690525,1748815848107,-1740.08153913,0.00023786,2]
[363690526,1748815848117,-1740.08153913,0.00023797,2]
[363690527,1748815848127,-6247.85356468,0.00023799,3]
[363690528,1748815848143,-300.0,0.00016985,2]
[363690529,1748815848153,-2816.89600137,0.00023799,3]
[363690530,1748815848225,-420.0,0.00018552,2]
[363690531,1748815848235,-405.0,0.00022078,2]
[363690532,1748815848244,-228.22461346,0.00022731,2]
[363690533,1748815848255,-16197.5602109,0.00023799,3]
[363690534,1748815848266,-115590.62856092,0.00023799,2]
[363690535,1748815848276,-498415.06732143,0.00023799,7]
[363690536,1748815891706,702.0,0.00024658,120]
[363690541,1748816190923,10000.0,0.00015437,2]
[363690544,1748816236715,269.28684,0.00013699,2]
[363690545,1748816322982,162.710189,0.00015437,2]
[363690549,1748816421032,1135.8653316,0.00015436,2]
[363690553,1748816518294,24900.0,0.00015436,2]
[363690555,1748816621655,18193.8717265,0.00024657,120]
[363690557,1748816632032,8479.6101914,0.00015435,2]
[363690560,1748816782585,5000.0,0.0001552,2]
[363690562,1748816918279,392.401179,0.0002,120]
[363690563,1748816989733,5000.0,0.0001552,2]
[363690568,1748817015166,-156.25836761,0.00015691,2]
[363690569,1748817016865,-152.0,0.00015691,2]
[363690570,1748817022144,-188.41772303,0.00015691,2]
[363690571,1748817024366,-154.07436628,0.00015691,2]
[363690573,1748817027740,340.979517,0.00015436,2]
[363690574,1748817031569,-191.71790609,0.00015691,2]
[363690594,1748817032269,-4157.53163699,0.00015691,2]
[363690596,1748817032278,-977.35726719,0.00015849,2]
[363690598,1748817032287,-176.12447256,0.00016338,2]
[363690600,1748817032298,-1200.0,0.00016434,2]
[363690601,1748817032307,-300.0,0.00016435,2]
[363690602,1748817032316,-300.0,0.00016435,2]
[363690603,1748817032325,-300.0,0.00016435,2]
[363690604,1748817032335,-300.0,0.00016435,2]
[363690605,1748817032344,-300.0,0.00016435,2]
[363690606,1748817032353,-14953.76349316,0.00016436,2]
[363690607,1748817032363,-1177.97,0.00016436,2]
[363690608,1748817032372,-502.16541451,0.00016436,2]
[363690609,1748817032382,-500.0,0.00016436,2]
[363690610,1748817032391,-166.05495958,0.00016436,2]
[363690611,1748817032401,-1177.97,0.00016437,2]
[363690612,1748817032410,-1177.97,0.00016437,2]
[363690613,1748817032419,-430.0,0.00016438,2]
[363690614,1748817032429,-430.0,0.00016438,2]
[363690615,1748817032437,-430.0,0.00016438,2]
[363690616,1748817032447,-450.0,0.00016438,2]
[363690617,1748817032456,-430.0,0.00016438,2]
[363690618,1748817032465,-450.0,0.00016438,2]
[363690619,1748817032474,-430.0,0.00016438,2]
[363690620,1748817032484,-430.0,0.00016438,2]
[363690621,1748817032494,-430.0,0.00016438,2]
[363690622,1748817032503,-430.0,0.00016438,2]
[363690624,1748817032512,-430.0,0.00016438,2]
[363690625,1748817032523,-430.0,0.00016438,2]
[363690626,1748817032532,-430.0,0.00016438,2]
[363690627,1748817032541,-430.0,0.00016438,2]
[363690628,1748817032550,-430.0,0.00016438,2]
[363690629,1748817032560,-430.0,0.00016438,2]
[363690630,1748817032569,-430.0,0.00016438,2]
[363690631,1748817032578,-430.0,0.00016438,2]
[363690632,1748817032587,-430.0,0.00016438,2]
[363690633,1748817032597,-430.0,0.00016438,2]
[363690634,1748817032607,-430.0,0.00016438,2]
[363690635,1748817032616,-430.0,0.00016438,2]
[363690636,1748817032625,-430.0,0.00016438,2]
[363690637,1748817032635,-380.0,0.00016438,2]
[363690638,1748817032644,-430.0,0.00016438,2]
[363690639,1748817032654,-430.0,0.00016438,2]
[363690640,1748817032663,-433.4784867,0.00016438,2]
[363690641,1748817032673,-430.0,0.00016438,2]
[363690642,1748817032682,-430.0,0.00016438,2]
[363690643,1748817032692,-430.0,0.00016438,2]
[363690644,1748817032701,-430.0,0.00016438,2]
[363690645,1748817032712,-430.0,0.00016438,2]
[363690646,1748817032721,-430.0,0.00016438,2]
[363690647,1748817032731,-430.0,0.00016438,2]
[363690648,1748817032740,-430.0,0.00016438,2]
[363690649,1748817032750,-430.0,0.00016438,2]
[363690650,1748817032759,-518.68389446,0.00016438,2]
[363690651,1748817032768,-430.0,0.00016438,2]
[363690652,1748817032778,-430.0,0.00016438,2]
[363690653,1748817032787,-561.81940469,0.00016438,2]
[363690654,1748817032796,-430.0,0.00016438,2]
[363690655,1748817032806,-392.43320601,0.00016438,2]
[363690656,1748817032816,-430.0,0.00016438,2]
[363690657,1748817032825,-430.0,0.00016438,2]
[363690658,1748817032835,-430.0,0.00016438,2]
[363690659,1748817032844,-463.06820166,0.00016438,2]
[363690660,1748817032853,-430.0,0.00016438,2]
[363690661,1748817032862,-430.0,0.00016438,2]
[363690662,1748817032872,-453.56313406,0.00016438,2]
[363690663,1748817032881,-430.0,0.00016438,2]
[363690664,1748817032890,-430.0,0.00016438,2]
[363690665,1748817032899,-430.0,0.00016438,2]
[363690666,1748817032909,-214.72553952,0.00016438,2]
[363690667,1748817032919,-430.0,0.00016438,2]
[363690668,1748817032928,-430.0,0.00016438,2]
[363690669,1748817032938,-430.0,0.00016438,2]
[363690670,1748817032948,-430.0,0.00016438,2]
[363690671,1748817032958,-430.0,0.00016438,2]
[363690672,1748817032968,-430.0,0.00016438,2]
[363690673,1748817032978,-430.0,0.00016438,2]
[363690674,1748817032988,-430.0,0.00016438,2]
[363690675,1748817032997,-430.0,0.00016438,2]
[363690676,1748817033007,-430.0,0.00016438,2]
[363690677,1748817033016,-431.65963659,0.00016438,2]
[363690678,1748817033026,-430.0,0.00016438,2]
[363690679,1748817033036,-430.0,0.00016438,2]
[363690680,1748817033046,-430.0,0.00016438,2]
[363690681,1748817033055,-430.0,0.00016438,2]
[363690682,1748817033065,-430.0,0.00016438,2]
[363690683,1748817033075,-430.0,0.00016438,2]
[363690684,1748817033085,-430.0,0.00016438,2]
[363690685,1748817033094,-430.0,0.00016438,2]
[363690686,1748817033104,-430.0,0.00016438,2]
[363690687,1748817033114,-315.7105575,0.00016438,2]
[363690688,1748817033124,-430.0,0.00016438,2]
[363690689,1748817033133,-430.0,0.00016438,2]
[363690690,1748817033144,-430.0,0.00016438,2]
[363690691,1748817033154,-430.0,0.00016438,2]
[363690692,1748817033163,-430.0,0.00016438,2]
[363690693,1748817033173,-430.0,0.00016438,2]
[363690694,1748817033183,-430.0,0.00016438,2]
[363690695,1748817033193,-430.0,0.00016438,2]
[363690696,1748817033203,-430.0,0.00016438,2]
[363690697,1748817033213,-442.38,0.00016438,2]
[363690698,1748817033222,-430.0,0.00016438,2]
[363690699,1748817033232,-430.0,0.00016438,2]
[363690700,1748817033241,-430.0,0.00016438,2]
[363690701,1748817033255,-430.0,0.00016438,2]
[363690702,1748817033264,-332.84663907,0.00016438,2]
[363690703,1748817033273,-430.0,0.00016438,2]
[363690704,1748817033282,-430.0,0.00016438,2]
[363690705,1748817033292,-500.0,0.00016438,2]
[363690706,1748817033301,-430.0,0.00016438,2]
[363690707,1748817033311,-430.0,0.00016438,2]
[363690708,1748817033321,-430.0,0.00016438,2]
[363690709,1748817033331,-430.0,0.00016438,2]
[363690710,1748817033341,-567.69,0.00016438,2]
[363690711,1748817033352,-430.0,0.00016438,2]
[363690712,1748817033361,-498.40816944,0.00016438,2]
[363690713,1748817033371,-430.0,0.00016438,2]
[363690714,1748817033381,-430.0,0.00016438,2]
[363690715,1748817033391,-430.0,0.00016438,2]
[363690716,1748817033401,-430.0,0.00016438,2]
[363690717,1748817033411,-430.0,0.00016438,2]
[363690718,1748817033421,-430.0,0.00016438,2]
[363690719,1748817033430,-430.0,0.00016438,2]
[363690720,1748817033439,-453.43897535,0.00016438,2]
[363690721,1748817033448,-430.0,0.00016438,2]
[363690722,1748817033459,-430.0,0.00016438,2]
[363690723,1748817033469,-430.0,0.00016438,2]
[363690724,1748817033479,-430.0,0.00016438,2]
[363690725,1748817033489,-349.48523347,0.00016438,2]
[363690726,1748817033498,-430.0,0.00016438,2]
[363690727,1748817033508,-430.0,0.00016438,2]
[363690728,1748817033518,-430.0,0.00016438,2]
[363690729,1748817033527,-430.0,0.00016438,2]
[363690730,1748817033538,-430.0,0.00016438,2]
[363690731,1748817033547,-430.0,0.00016438,2]
[363690732,1748817033557,-430.0,0.00016438,2]
[363690733,1748817033567,-430.0,0.00016438,2]
[363690734,1748817033577,-430.0,0.00016438,2]
[363690735,1748817033587,-430.0,0.00016438,2]
[363690736,1748817033597,-430.0,0.00016438,2]
[363690737,1748817033607,-430.0,0.00016438,2]
[363690738,1748817033617,-500.0,0.00016438,2]
[363690739,1748817033627,-500.0,0.00016438,2]
[363690740,1748817033636,-500.0,0.00016438,2]
[363690741,1748817033646,-500.0,0.00016438,2]
[363690742,1748817033655,-539.59,0.00016438,2]
[363690743,1748817033665,-430.0,0.00016438,2]
[363690744,1748817033675,-430.0,0.00016438,2]
[363690745,1748817033685,-430.0,0.00016438,2]
[363690746,1748817033695,-430.0,0.00016438,2]
[363690747,1748817033704,-518.63,0.00016438,2]
[363690748,1748817033715,-230.0,0.00016438,2]
[363690749,1748817033725,-430.80705133,0.00016438,2]
[363690750,1748817033735,-430.0,0.00016438,2]
[363690751,1748817033744,-430.0,0.00016438,2]
[363690752,1748817033754,-430.0,0.00016438,2]
[363690753,1748817033763,-430.0,0.00016438,2]
[363690754,1748817033773,-430.0,0.00016438,2]
[363690755,1748817033783,-430.0,0.00016438,2]
[363690756,1748817033792,-430.0,0.00016438,2]
[363690757,1748817033802,-430.0,0.00016438,2]
[363690758,1748817033812,-430.0,0.00016438,2]
[363690759,1748817033832,-430.0,0.00016438,2]
[363690760,1748817033843,-430.0,0.00016438,2]
[363690761,1748817033852,-430.0,0.00016438,2]
[363690762,1748817033862,-430.0,0.00016438,2]
[363690763,1748817033872,-430.0,0.00016438,2]
[363690764,1748817033882,-430.0,0.00016438,2]
[363690765,1748817033892,-430.0,0.00016438,2]
[363690766,1748817033902,-430.0,0.00016438,2]
[363690767,1748817033912,-430.0,0.00016438,2]
[363690768,1748817033922,-430.0,0.00016438,2]
[363690769,1748817033931,-430.0,0.00016438,2]
[363690770,1748817033942,-430.0,0.00016438,2]
[363690771,1748817033952,-430.0,0.00016438,2]
[363690772,1748817033962,-430.0,0.00016438,2]
[363690773,1748817033973,-461.7281109,0.00016438,2]
[363690774,1748817033983,-430.0,0.00016438,2]
[363690775,1748817033993,-430.0,0.00016438,2]
[363690776,1748817034003,-430.0,0.00016438,2]
[363690777,1748817034014,-476.36,0.00016438,2]
[363690778,1748817034024,-497.0,0.00016438,2]
[363690779,1748817034034,-430.0,0.00016438,2]
[363690780,1748817034044,-430.0,0.00016438,2]